bitfinex-derivatives/quotes_SOLF0:USTF0_20250714
["timestamp","ask_amount","ask_price","bid_price","bid_amount"]
[1752455409009,3.34,161.75,161.74,3.36]
[1752455411418,3.34,161.81,161.74,3.36]
[1752455411609,3.34,161.8,161.74,3.36]
[1752455412012,3.34,161.77,161.75,6.1795]
[1752455412211,3.34,161.77,161.76,3.36]
[1752455412909,9.5188,161.77,161.76,3.36]
[1752455413609,3.34,161.77,161.76,3.36]
[1752455413913,3.34,161.78,161.76,3.36]
[1752455414109,3.34,161.77,161.76,3.36]
[1752455416115,9.5182,161.79,161.76,3.36]
[1752455416511,3.34,161.79,161.76,9.5389]
[1752455416718,3.34,161.81,161.77,6.38433391]
[1752455416913,3.34,161.81,161.79,3.02433391]
[1752455417108,9.5168,161.83,161.8,6.1774]
[1752455417315,3.34,161.83,161.82,3.36]
[1752455417813,3.34,161.83,161.81,3.36]
[1752455418712,3.34,161.82,161.81,3.36]
[1752455420013,3.34,161.86,161.8,3.02433391]
[1752455420220,4.49430676,161.89,161.76,3.02433391]
[1752455420221,3.34,161.88,161.82,3.02433391]
[1752455420414,3.34,161.88,161.83,3.36]
[1752455420619,3.34,161.88,161.84,3.36]
[1752455420919,3.34,161.86,161.84,3.36]
[1752455421813,9.5157,161.85,161.84,3.36]
[1752455424918,3.34,161.85,161.84,3.36]
[1752455425127,3.34,161.86,161.84,3.36]
[1752455425424,3.34,161.86,161.82,3.02433391]
[1752455425624,3.34,161.86,161.85,3.36]
[1752455426126,9.5154,161.86,161.85,3.36]
[1752455430826,4.49430676,161.89,161.85,3.36]
[1752455431031,4.49430676,161.89,161.87,3.61]
[1752455431231,3.48,161.9,161.87,3.61]
[1752455431829,3.48,161.9,161.88,3.61]
[1752455432023,3.48,161.92,161.89,3.61]
[1752455432327,9.6533,161.92,161.89,9.7841]
[1752455432633,9.6533,161.92,161.9,3.61]
[1752455434028,6.1734,161.91,161.9,3.61]
[1752455434632,9.6532,161.92,161.9,3.61]
[1752455435135,6.1734,161.91,161.9,3.61]
[1752455435535,3.48,161.92,161.9,3.61]
[1752455435732,9.6538,161.91,161.88,6.63433391]
[1752455435935,9.6538,161.91,161.89,3.61]
[1752455436932,4.48009193,161.96,161.9,6.1736]
[1752455437139,3.48,161.97,161.91,3.61]
[1752455437837,9.6531,161.92,161.91,3.61]
[1752455438338,9.6531,161.92,161.89,3.61]
[1752455438339,6.1738,161.91,161.89,3.61]
[1752455438632,3.01931999,161.96,161.9,3.61]
[1752455438836,9.6534,161.91,161.9,3.61]
[1752455440037,9.6532,161.92,161.9,3.61]
[1752455440233,3.48,161.97,161.91,3.61]
[1752455440443,3.48,161.97,161.93,3.61]
[1752455440633,4.48009193,161.98,161.93,3.61]
[1752455440939,3.48,161.95,161.93,3.61]
[1752455441838,4.48009193,161.98,161.93,3.61]
[1752455442037,3.48,161.96,161.93,3.61]
[1752455442435,3.48,161.98,161.92,3.01931999]
[1752455442634,3.48,161.98,161.94,3.61]
[1752455442945,6.1719,161.95,161.94,3.61]
[1752455443942,9.6519,161.95,161.94,3.61]
[1752455444838,9.6519,161.95,161.92,3.01824168]
[1752455444839,6.1727,161.93,161.92,3.01824168]
[1752455445039,3.48,161.93,161.91,3.61]
[1752455445740,9.6531,161.92,161.91,3.61]
[1752455449149,9.6538,161.9,161.89,3.61]
[1752455449348,3.48,161.92,161.89,3.61]
[1752455449643,3.48,161.91,161.89,3.61]
[1752455449847,9.6535,161.91,161.89,3.61]
[1752455450150,6.1735,161.91,161.89,3.61]
[1752455452147,9.6532,161.92,161.89,9.7842]
[1752455452349,9.6532,161.92,161.9,3.61]
[1752455453853,6.1732,161.92,161.9,3.61]
[1752455454352,3.01824168,161.96,161.9,3.61]
[1752455454353,3.48,161.93,161.91,3.61]
[1752455454556,3.48,161.95,161.91,3.61]
[1752455455245,9.6527,161.93,161.91,3.61]
[1752455455850,9.6533,161.92,161.9,3.01824168]
[1752455456056,9.6533,161.92,161.91,3.61]
[1752455459151,9.6533,161.92,161.88,3.01824168]
[1752455459352,9.6329177,161.97,161.83,179.08]
[1752455459353,3.48,161.88,161.86,3.01824168]
[1752455459759,3.48,161.88,161.87,3.61]
[1752455460160,9.6548,161.88,161.87,3.61]
[1752455460360,3.37,161.88,161.85,3.48]
[1752455460552,3.37,161.88,161.84,3.48]
[1752455460856,4.47538751,161.91,161.88,3.48]
[1752455461061,7.84538751,161.92,161.9,3.48]
[1752455461264,3.37,161.92,161.9,3.48]
[1752455461562,3.37,161.92,161.91,3.48]
[1752455461953,3.37,161.94,161.91,3.48]
[1752455462259,3.37,161.92,161.91,3.48]
[1752455462560,3.37,161.93,161.91,3.48]
[1752455462957,3.37,161.95,161.92,3.48]
[1752455463152,3.37,161.94,161.9,3.48]
[1752455463352,3.37,161.93,161.9,3.48]
[1752455463558,3.37,161.95,161.91,3.48]
[1752455463859,4.47538751,161.96,161.9,6.1738]
[1752455463860,3.37,161.92,161.9,6.1738]
[1752455464463,3.37,161.92,161.91,3.48]
[1752455464862,3.37,161.92,161.91,9.6534]
[1752455465059,3.37,161.93,161.91,3.48]
[1752455465258,7.84538751,161.93,161.91,3.48]
[1752455465459,3.37,161.93,161.91,3.48]
[1752455465662,3.37,161.92,161.91,3.48]
[1752455466058,3.37,161.92,161.88,3.01933377]
[1752455466359,4.47538751,161.92,161.88,3.01933377]
[1752455466561,3.37,161.91,161.9,3.48]
[1752455466763,9.5435,161.91,161.9,3.48]
[1752455467861,3.37,161.91,161.9,3.48]
[1752455470158,14.03870486,161.91,161.9,3.48]
[1752455470362,4.49530486,161.91,161.87,3.48]
[1752455470556,3.37,161.89,161.88,3.48]
[1752455470762,9.5443,161.89,161.88,3.48]
[1752455471562,14.04009713,161.89,161.88,3.48]
[1752455471762,9.5443,161.89,161.88,3.48]
[1752455472467,7.86579713,161.89,161.88,3.48]
[1752455472663,3.37,161.93,161.88,6.49933377]
[1752455472966,7.86878928,161.92,161.89,3.48]
[1752455473168,4.49878928,161.91,161.89,3.48]
[1752455473370,9.5432,161.92,161.89,6.174]
[1752455473670,4.50068243,161.91,161.9,3.48]
[1752455474068,4.50068243,161.91,161.9,9.6538]
[1752455474267,4.50346876,161.91,161.9,6.1738]
[1752455474471,14.04696876,161.91,161.88,3.01933377]
[1752455474665,3.37,161.9,161.88,3.01933377]
[1752455474871,3.37,161.9,161.89,3.48]
[1752455475171,7.87382956,161.9,161.89,3.48]
[1752455476166,14.04762956,161.9,161.89,3.48]
[1752455476374,4.50382956,161.9,161.87,3.48]
[1752455476578,3.37,161.88,161.85,3.48]
[1752455476771,3.37,161.88,161.84,3.48]
[1752455477070,3.37,161.87,161.84,3.48]
[1752455477470,3.37,161.87,161.85,6.1755]
[1752455477672,8.52753019,161.91,161.86,3.01933377]
[1752455477974,4.50910492,161.9,161.87,3.48]
[1752455478177,4.50910492,161.89,161.87,3.48]
[1752455478371,4.50910492,161.88,161.87,9.655]
[1752455479372,9.5432,161.92,161.9,3.48]
[1752455479570,4.50803478,161.91,161.9,3.48]
[1752455479770,4.50803478,161.91,161.9,9.6538]
[1752455480175,7.87803478,161.91,161.9,3.48]
[1752455480979,3.37,161.9,161.89,3.48]
[1752455481279,3.37,161.89,161.85,3.48]
[1752455481679,3.37,161.87,161.84,3.01933377]
[1752455482080,3.37,161.87,161.86,6.1754]
[1752455482280,3.37,161.87,161.86,9.6554]
[1752455482682,3.37,161.87,161.86,3.48]
[1752455483177,6.1754,161.86,161.84,3.48]
[1752455483383,3.37,161.89,161.83,3.48]
[1752455483779,3.37,161.89,161.85,6.1757]
[1752455483980,3.37,161.89,161.86,3.48]
[1752455484181,4.50808355,161.88,161.86,3.48]
[1752455484382,7.87807942,161.87,161.86,3.48]
[1752455484583,3.37,161.87,161.86,3.48]
[1752455486582,3.37,161.86,161.84,6.176]
[1752455486783,3.37,161.86,161.85,3.48]
[1752455486979,7.87748363,161.86,161.84,3.48]
[1752455487185,3.37,161.85,161.84,3.48]
[1752455487989,3.37,161.85,161.84,9.6561]
[1752455488279,3.37,161.85,161.84,3.48]
[1752455488684,3.37,161.89,161.84,3.02210359]
[1752455488880,4.50755941,161.88,161.85,3.48]
[1752455489081,4.50755941,161.87,161.86,6.50210359]
[1752455489288,5.15753019,161.91,161.86,9.19720359]
[1752455489484,3.37,161.88,161.87,3.48]
[1752455489688,7.87765844,161.88,161.87,3.48]
[1752455489883,7.87765844,161.88,161.87,9.655]
[1752455490189,4.50765844,161.88,161.87,9.655]
[1752455490785,3.66,161.87,161.83,3.02210359]
[1752455490981,3.66,161.85,161.84,3.36]
[1752455491689,3.66,161.85,161.81,3.02210359]
[1752455491891,3.66,161.85,161.83,3.36]
[1752455492090,3.66,161.84,161.83,9.5364]
[1752455492986,6.1751,161.87,161.84,6.176]
[1752455493193,9.8351,161.87,161.82,3.36]
[1752455493489,6.1751,161.87,161.82,3.36]
[1752455493684,14.34362827,161.86,161.82,3.36]
[1752455493885,3.66,161.86,161.82,3.36]
[1752455494488,3.66,161.86,161.83,6.1764]
[1752455494786,3.66,161.86,161.85,3.36]
[1752455494991,8.16768403,161.86,161.85,3.36]
[1752455495789,4.50768403,161.86,161.85,3.36]
[1752455496084,4.50768403,161.86,161.85,6.38210359]
[1752455496283,4.50623206,161.89,161.85,6.38210359]
[1752455496489,4.50623206,161.88,161.86,9.5351]
[1752455496788,3.66,161.88,161.87,3.36]
[1752455497091,8.16623206,161.88,161.87,3.36]
[1752455497790,14.34083206,161.88,161.87,3.36]
[1752455498486,8.16623206,161.88,161.87,3.36]
[1752455500395,14.34083206,161.88,161.87,3.36]
[1752455500991,3.66,161.87,161.85,6.38210359]
[1752455501188,3.66,161.87,161.85,3.36]
[1752455501393,3.66,161.89,161.84,3.36]
[1752455501593,4.50798057,161.88,161.84,3.36]
[1752455501795,3.66,161.86,161.84,6.176]
[1752455501990,3.66,161.86,161.85,3.36]
[1752455502495,3.66,161.86,161.85,9.5357]
[1752455502797,4.50809176,161.86,161.85,9.5357]
[1752455502995,3.66,161.86,161.85,3.36]
[1752455503198,3.66,161.86,161.84,3.36]
[1752455503199,10.68344285,161.86,161.84,3.36]
[1752455503401,3.66,161.84,161.83,3.36]
[1752455504599,6.1755,161.86,161.81,3.02210359]
[1752455504799,8.16738497,161.85,161.84,3.36]
[1752455505397,4.50738497,161.85,161.79,533.7]
[1752455505604,3.66,161.83,161.8,3.36]
[1752455505901,3.66,161.83,161.79,3.02210359]
[1752455505902,3.66,161.83,161.82,3.36]
[1752455506105,8.16716759,161.83,161.82,3.36]
[1752455507401,4.50716759,161.83,161.82,9.5369]
[1752455507707,6.1759,161.85,161.83,3.36]
[1752455507708,8.16716759,161.84,161.83,3.36]
[1752455509404,4.50716759,161.84,161.83,9.5365]
[1752455509610,4.50716759,161.87,161.84,3.36]
[1752455509813,3.66,161.89,161.82,3.02204208]
[1752455510114,4.50247703,161.88,161.83,3.36]
[1752455510313,3.66,161.84,161.83,3.36]
[1752455510512,4.50247703,161.84,161.8,3.02204208]
[1752455510712,3.66,161.83,161.81,3.36]
[1752455511013,3.66,161.85,161.81,3.36]
[1752455511216,3.66,161.86,161.81,3.36]
[1752455511417,3.66,161.84,161.81,3.36]
[1752455511610,3.66,161.84,161.82,6.1766]
[1752455511810,3.66,161.84,161.83,3.36]
[1752455512013,3.66,161.86,161.83,3.36]
[1752455512216,3.66,161.87,161.86,3.36]
[1752455512420,8.16320171,161.87,161.86,3.36]
[1752455513715,4.50320171,161.87,161.86,3.36]
[1752455513916,4.5032537,161.88,161.87,3.36]
[1752455514313,4.5032537,161.88,161.87,9.535]
[1752455514822,8.1632537,161.88,161.87,3.36]
[1752455515017,4.5032537,161.88,161.85,3.36]
[1752455515322,3.66,161.86,161.85,3.36]
[1752455516123,3.66,161.86,161.85,9.5355]
[1752455516420,9.8346,161.88,161.85,9.5355]
[1752455516626,3.66,161.87,161.86,3.36]
[1752455516822,3.66,161.87,161.86,9.5354]
[1752455517027,8.16408116,161.87,161.86,9.5354]
[1752455517319,3.66,161.87,161.86,3.36]
[1752455517928,8.16436749,161.87,161.86,3.36]
[1752455518820,8.16436749,161.87,161.86,9.5354]
[1752455519119,8.16436749,161.87,161.86,3.36]
[1752455520325,3.46,161.89,161.86,3.36]
[1752455520525,4.50540321,161.88,161.86,3.36]
[1752455520827,3.46,161.88,161.86,3.36]
[1752455521331,3.46,161.9,161.86,3.36]
[1752455521530,4.50569031,161.89,161.86,3.36]
[1752455521728,4.50569031,161.88,161.86,3.36]
[1752455521929,9.6343,161.89,161.86,9.535]
[1752455522125,4.50569031,161.88,161.87,3.35]
[1752455523127,4.50569031,161.88,161.87,9.525]
[1752455523834,3.46,161.91,161.87,3.35]
[1752455524031,4.50540612,161.9,161.89,3.35]
[1752455524733,4.50540612,161.9,161.89,9.5242]
[1752455524935,4.50540612,161.9,161.89,3.35]
[1752455525236,7.96540612,161.9,161.89,3.35]
[1752455526236,3.46,161.89,161.87,12.5462337]
[1752455526431,3.46,161.89,161.87,6.3713337]
[1752455526633,3.46,161.92,161.88,3.35]
[1752455526830,9.6341,161.9,161.88,3.35]
[1752455527030,4.5052293,161.89,161.88,3.35]
[1752455527332,7.9652293,161.89,161.88,3.35]
[1752455528131,14.1394293,161.89,161.88,3.35]
[1752455528329,14.1394293,161.89,161.86,3.35]
[1752455528330,4.5052293,161.89,161.86,3.35]
[1752455528632,3.46,161.87,161.86,3.35]
[1752455528833,3.46,161.88,161.86,9.5254]
[1752455529035,3.46,161.88,161.87,3.35]
[1752455529224,7.96647146,161.88,161.87,3.35]
[1752455529728,14.14107146,161.88,161.87,3.35]
[1752455529929,4.50647146,161.88,161.87,3.35]
[1752455530429,4.50647146,161.88,161.87,12.5463337]
[1752455530629,8.61753019,161.92,161.88,3.35]
[1752455530830,4.50615038,161.91,161.87,3.0213337]
[1752455531135,3.46,161.91,161.9,3.35]
[1752455531334,7.96574345,161.91,161.9,3.35]
[1752455531534,3.46,161.89,161.88,3.35]
[1752455531734,7.96574345,161.89,161.88,3.35]
[1752455532134,7.96574345,161.89,161.88,9.5246]
[1752455532332,9.6336,161.91,161.88,9.5246]
[1752455532535,7.96553263,161.9,161.89,3.35]
[1752455534332,7.96553263,161.9,161.89,9.5242]
[1752455534529,4.50553263,161.9,161.89,9.5242]
[1752455534926,5.15753019,161.95,161.93,3.35]
[1752455535130,8.61753019,161.96,161.94,6.36952202]
[1752455535339,8.61753019,161.96,161.95,3.35]
[1752455535537,3.46,161.96,161.95,3.35]
[1752455535831,3.46,161.98,161.95,3.35]
[1752455536231,6.1712,161.97,161.95,3.35]
[1752455536435,5.15753019,161.99,161.95,9.5219]
[1752455536634,3.46,161.99,161.95,3.35]
[1752455536932,8.61753019,162.0,161.96,6.1715]
[1752455537138,8.61753019,162.0,161.97,3.35]
[1752455537139,3.46,162.0,161.97,3.35]
[1752455537437,3.46,161.98,161.97,3.35]
[1752455537835,9.6308,161.98,161.97,3.35]
[1752455538231,6.1716,161.96,161.95,3.35]
[1752455538436,9.6316,161.96,161.95,3.35]
[1752455540646,6.1716,161.96,161.95,3.35]
[1752455541334,9.6316,161.96,161.95,3.35]
[1752455541738,6.172,161.95,161.93,3.01777063]
[1752455541941,9.632,161.95,161.94,3.35]
[1752455547846,6.172,161.95,161.94,3.35]
[1752455548448,9.632,161.95,161.94,3.35]
[1752455548850,3.01777063,161.99,161.94,3.35]
[1752455549051,3.46,162.0,161.94,3.35]
[1752455549246,3.46,161.99,161.96,3.35]
[1752455549453,3.01777063,162.04,161.98,3.35]
[1752455549454,3.46,162.0,161.98,3.35]
[1752455549651,6.1705,161.99,161.98,3.35]
[1752455550252,9.6305,161.99,161.98,3.35]
[1752455550450,6.1708,161.98,161.96,3.39]
[1752455550751,9.8208,161.98,161.96,3.39]
[1752455551148,3.65,161.97,161.95,9.18957063]
[1752455551751,3.65,161.97,161.96,3.39]
[1752455551954,6.1708,161.98,161.96,3.39]
[1752455552148,9.8208,161.98,161.96,3.39]
[1752455552744,3.65,161.96,161.93,3.01777063]
[1752455553049,3.65,161.98,161.91,3.01777063]
[1752455553348,3.65,161.96,161.91,3.39]
[1752455553750,9.8229,161.93,161.92,3.39]
[1752455554955,3.65,161.93,161.92,3.39]
[1752455556156,9.8227,161.93,161.92,3.39]
[1752455556356,3.65,161.93,161.9,3.39]
[1752455556552,3.65,161.93,161.91,3.39]
[1752455556756,3.65,161.94,161.88,6.1744]
[1752455556959,3.65,161.94,161.91,3.39]
[1752455557152,3.65,161.94,161.89,3.39]
[1752455557452,3.65,161.9,161.88,3.39]
[1752455557653,3.65,161.89,161.88,3.39]
[1752455558252,3.65,161.88,161.85,179.04]
[1752455558458,3.01777063,161.93,161.87,3.39]
[1752455558459,4.4738582,161.91,161.87,3.39]
[1752455558757,3.65,161.89,161.87,3.39]
[1752455559148,3.65,161.89,161.87,9.5647]
[1752455559350,3.65,161.91,161.88,3.39]
[1752455559554,8.1238582,161.93,161.88,3.39]
[1752455559754,6.1728,161.93,161.89,3.39]
[1752455559958,3.65,161.92,161.89,3.39]
[1752455560161,3.65,161.91,161.9,3.39]
[1752455560457,9.8234,161.91,161.9,3.39]
[1752455561763,6.1732,161.92,161.9,3.39]
[1752455561962,9.8232,161.92,161.91,3.39]
[1752455562557,3.01777063,161.94,161.91,3.39]
[1752455562558,9.8227,161.93,161.91,3.39]
[1752455563060,9.8227,161.93,161.92,3.39]
[1752455564163,14.2965582,161.93,161.92,3.39]
[1752455564361,9.8227,161.93,161.92,3.39]
[1752455564758,14.2965582,161.93,161.92,3.39]
[1752455564961,9.8227,161.93,161.92,3.39]
[1752455565361,9.8232,161.92,161.89,6.1741]
[1752455565561,9.8232,161.92,161.91,3.39]
[1752455565962,6.1735,161.91,161.88,6.1744]
[1752455566157,4.4738582,161.95,161.87,3.01777063]
[1752455566361,3.65,161.92,161.9,3.39]
[1752455566661,9.8231,161.92,161.9,3.39]
[1752455566963,9.8231,161.92,161.91,3.39]
[1752455567468,3.65,161.9,161.89,3.39]
[1752455568062,3.65,161.9,161.87,6.1748]
[1752455568262,3.65,161.9,161.88,3.39]
[1752455568464,4.4738582,161.93,161.88,3.39]
[1752455568762,3.65,161.89,161.88,3.39]
[1752455570165,9.8242,161.89,161.88,3.39]
[1752455570359,3.65,161.89,161.88,3.39]
[1752455570564,8.1238582,161.91,161.87,6.175]
[1752455570765,3.65,161.9,161.89,3.39]
[1752455572166,9.8241,161.9,161.89,3.39]
[1752455574067,9.8246,161.88,161.87,3.39]
[1752455574364,3.01777063,161.88,161.82,3.39]
[1752455574571,3.65,161.87,161.83,3.39]
[1752455574867,3.65,161.85,161.81,3.39]
[1752455575067,3.65,161.85,161.82,3.39]
[1752455575570,6.1764,161.84,161.82,3.39]
[1752455575758,3.65,161.83,161.82,3.39]
[1752455576564,3.65,161.83,161.82,9.5669]
[1752455577565,3.65,161.83,161.82,3.39]
[1752455579172,3.65,161.84,161.83,3.39]
[1752455579774,3.65,161.84,161.83,9.5665]
[1752455580167,3.65,161.86,161.82,3.01777063]
[1752455580567,3.56,161.85,161.83,3.49]
[1752455580871,3.56,161.85,161.84,6.1761]
[1752455581080,3.56,161.86,161.84,3.49]
[1752455581469,3.56,161.86,161.82,3.01777063]
[1752455581673,3.56,161.86,161.83,3.49]
[1752455582170,3.56,161.86,161.85,3.49]
[1752455582776,9.7354,161.86,161.85,3.49]
[1752455582971,9.7354,161.86,161.78,218.68791953]
[1752455582972,3.56,161.87,161.82,3.49]
[1752455583170,3.56,161.85,161.82,3.49]
[1752455583371,3.56,161.83,161.82,3.49]
[1752455583672,3.56,161.83,161.8,3.49]
[1752455584073,3.56,161.8,161.79,3.49]
[1752455584270,3.56,161.8,161.77,3.49]
[1752455584569,6.1776,161.81,161.78,3.49]
[1752455584874,3.56,161.8,161.77,3.49]
[1752455585073,3.56,161.79,161.77,3.49]
[1752455586170,3.56,161.79,161.78,3.49]
[1752455587277,9.738,161.79,161.78,3.49]
[1752455587480,9.738,161.79,161.76,6.1791]
[1752455587481,6.178,161.79,161.76,6.1791]
[1752455587777,3.56,161.78,161.77,3.49]
[1752455588973,3.56,161.81,161.77,3.49]
[1752455589278,6.1779,161.8,161.74,3.49]
[1752455589474,3.56,161.79,161.74,3.49]
[1752455589777,6.1773,161.81,161.78,9.6684]
[1752455589979,3.56,161.84,161.79,3.49]
[1752455590479,3.56,161.84,161.77,3.01777063]
[1752455590675,3.56,161.84,161.8,3.49]
[1752455591478,3.56,161.85,161.8,3.49]
[1752455591674,3.56,161.86,161.8,3.49]
[1752455592371,3.56,161.86,161.81,3.49]
[1752455592876,9.7368,161.83,161.8,6.1775]
[1752455593179,3.56,161.86,161.82,3.49]
[1752455593378,3.56,161.86,161.83,3.49]
[1752455593881,3.56,161.84,161.83,3.49]
[1752455594282,3.01777063,161.87,161.79,3.01777063]
[1752455594484,3.56,161.83,161.82,3.49]
[1752455595082,9.7365,161.83,161.82,3.49]
[1752455598383,3.56,161.83,161.82,3.49]
[1752455599185,6.1758,161.85,161.82,9.6669]
[1752455599386,3.56,161.86,161.83,3.49]
[1752455599787,3.56,161.85,161.83,3.49]
[1752455601988,3.56,161.85,161.84,3.49]
[1752455603781,9.7357,161.85,161.84,3.49]
[1752455603985,3.56,161.85,161.84,3.49]
[1752455605287,3.56,161.86,161.84,3.49]
[1752455606190,9.7355,161.86,161.84,3.49]
[1752455607588,9.7355,161.86,161.85,3.49]
[1752455613384,3.54,161.86,161.77,3.01777063]
[1752455613585,3.01777063,161.85,161.78,3.32]
[1752455613790,3.54,161.84,161.78,3.32]
[1752455615087,3.54,161.82,161.78,3.32]
[1752455615684,4.49256468,161.83,161.78,3.32]
[1752455615889,3.54,161.83,161.78,3.32]
[1752455616286,4.49362072,161.82,161.8,6.1773]
[1752455616488,4.49362072,161.82,161.81,3.32]
[1752455617090,9.7166,161.83,161.81,3.32]
[1752455618399,14.21377559,161.82,161.8,6.1773]
[1752455618688,3.54,161.82,161.8,6.1773]
[1752455618893,3.54,161.82,161.81,3.32]
[1752455619088,4.4967975,161.82,161.81,9.4973]
[1752455619692,4.4967975,161.83,161.82,6.1769]
[1752455619898,4.4967975,161.83,161.82,9.4969]
[1752455621698,9.716,161.85,161.83,3.32]
[1752455622096,4.49846499,161.84,161.83,3.32]
[1752455623298,8.03846499,161.84,161.83,3.32]
[1752455624097,3.54,161.84,161.83,3.32]
[1752455624295,3.54,161.84,161.79,3.0238635]
[1752455624497,3.54,161.84,161.8,3.32]
[1752455624693,5.17389208,161.88,161.8,3.32]
[1752455624901,3.54,161.83,161.81,6.1772]
[1752455625100,3.54,161.83,161.82,3.32]
[1752455625699,6.1764,161.84,161.82,3.32]
[1752455625700,9.7164,161.84,161.82,3.32]
[1752455627095,4.50337607,161.83,161.82,3.32]
[1752455628390,4.50337607,161.83,161.82,9.4969]
[1752455628596,10.31506038,161.91,161.82,3.32]
[1752455628597,4.50343238,161.85,161.82,3.32]
[1752455628792,5.17389208,161.89,161.82,3.32]
[1752455628994,4.50323988,161.88,161.83,6.1762]
[1752455629197,4.50323988,161.87,161.84,3.32]
[1752455629402,3.54,161.85,161.81,3.0238635]
[1752455629900,3.54,161.85,161.84,3.32]
[1752455630103,8.04334891,161.85,161.84,3.32]
[1752455630704,6.1762,161.84,161.82,3.32]
[1752455631004,9.7162,161.84,161.82,3.32]
[1752455631406,9.7165,161.83,161.82,3.32]
[1752455632306,3.54,161.83,161.82,3.32]
[1752455632807,6.1763,161.84,161.82,3.32]
[1752455633008,9.7163,161.84,161.82,3.32]
[1752455633207,9.7163,161.84,161.83,3.32]
[1752455633411,14.22266344,161.84,161.83,3.32]
[1752455635709,3.54,161.82,161.81,3.32]
[1752455635908,8.04636344,161.82,161.81,3.32]
[1752455636611,14.22326344,161.82,161.81,3.32]
[1752455639308,3.54,161.8,161.79,9.498]
[1752455640616,3.54,161.8,161.79,3.32]
[1752455641316,9.737,161.82,161.79,6.178]
[1752455641511,4.51101399,161.81,161.8,3.6]
[1752455643017,4.51101399,161.81,161.8,9.7776]
[1752455644417,8.07101399,161.81,161.8,3.6]
[1752455645620,14.24831399,161.81,161.8,3.6]
[1752455645818,8.07101399,161.81,161.8,3.6]
[1752455646018,4.51101399,161.81,161.8,3.6]
[1752455646616,3.56,161.82,161.8,3.6]
[1752455646819,5.17389208,161.85,161.8,3.6]
[1752455647019,8.06943954,161.84,161.81,3.02360226]
[1752455647229,4.50943954,161.83,161.82,3.6]
[1752455648228,4.50943954,161.83,161.82,9.7766]
[1752455648924,3.56,161.86,161.83,6.1762]
[1752455649127,4.50890434,161.85,161.84,3.6]
[1752455649323,5.17389208,161.89,161.88,9.7746]
[1752455649622,14.90609208,161.95,161.89,3.6]
[1752455649821,14.90609208,161.95,161.91,6.1732]
[1752455650018,3.56,161.94,161.92,3.6]
[1752455650727,3.56,161.94,161.93,3.6]
[1752455650927,6.1722,161.95,161.9,3.02360226]
[1752455651225,9.7322,161.95,161.94,3.6]
[1752455652723,6.1729,161.93,161.9,9.19730226]
[1752455653026,3.56,161.92,161.91,3.6]